fUSD/lending_fUSD_20240722
["ID","MTS","AMOUNT","RATE_DAILY","PERIOD"]
[332874483,1721611838442,-11309.62086512,0.000118,2]
[332874484,1721611838595,-9551.3770682,0.000118,2]
[332874485,1721611838607,-29419.7076725,0.000118,2]
[332874486,1721611838618,-34067.92386301,0.000118,2]
[332874487,1721611838629,-1005.21300003,0.000118,2]
[332874488,1721611838639,-299.7549917,0.000118,2]
[332874489,1721611838651,-4465.68502822,0.000118,2]
[332874490,1721611838764,-8559.29733584,0.000118,2]
[332874491,1721611838776,-37524.81580561,0.000118,2]
[332874492,1721611838787,-11404.08047009,0.000118,2]
[332874493,1721611838799,-279.34142666,0.000118,2]
[332874494,1721611838810,-15090.96513034,0.000118,2]
[332874658,1721611840557,-3562.61317517,0.00011324,2]
[332874661,1721611840573,-1894.21158881,0.00011324,2]
[332874663,1721611840584,-255.60749108,0.00011324,2]
[332874666,1721611840595,-1191.06342826,0.00011324,2]
[332874668,1721611840607,-218.34305235,0.00011324,2]
[332874670,1721611840616,-10522.77014268,0.000118,2]
[332874672,1721611840625,-1000.0,0.000118,2]
[332874674,1721611840634,-1000.0,0.000118,2]
[332874676,1721611840643,-500.0,0.00011805,2]
[332874678,1721611840653,-155.0,0.0001185,2]
[332874680,1721611840661,-314.30245147,0.0001185,2]
[332874682,1721611840671,-156.757,0.0001189,2]
[332874684,1721611840684,-356.93341906,0.00011896,2]
[332874686,1721611840693,-2640.24119162,0.00011899,2]
[332874688,1721611840702,-47103.12724329,0.000119,2]
[332874689,1721611840741,-5.68699051,0.000119,2]
[332874690,1721611840752,-760.74789201,0.000119,2]
[332874691,1721611840762,-2536.80913655,0.000119,2]
[332874692,1721611840773,-3698.49104601,0.000119,2]
[332874693,1721611840784,-1369.23838763,0.000119,2]
[332874694,1721611840795,-709.565,0.000119,2]
[332874945,1721611843568,-547.32398027,0.000119,2]
[332874960,1721611843698,-22243.14004938,0.000119,2]
[332874974,1721611843826,-48674.29307037,0.000119,2]
[332875380,1721611847944,-150.92943093,0.00011899,2]
[332875383,1721611847961,-606.18831866,0.000119,2]
[332875386,1721611847980,-584.74,0.000119,2]
[332875389,1721611847998,-956.45,0.000119,2]
[332875402,1721611848117,-4852.36076937,0.000119,2]
[332875405,1721611848135,-1898.86705973,0.000119,2]
[332875408,1721611848153,-3070.60000002,0.000119,2]
[332875411,1721611848171,-6662.0,0.000119,2]
[332875414,1721611848187,-8609.01591629,0.000119,2]
[332875416,1721611848204,-32489.65753183,0.000119,2]
[332875882,1721611939061,2983.75,0.00025,120]
[332875884,1721612132592,500.0,0.00025,110]
[332875885,1721612352800,500.0,0.00025,110]
[332875889,1721613031641,-388.45,9.144e-05,2]
[332875890,1721613031651,-191.0,0.00010732,2]
[332875891,1721613031661,-480.0,0.00010895,2]
[332875892,1721613031670,-218.31,0.00010925,2]
[332875893,1721613031680,-5788.07,0.00010959,2]
[332875894,1721613031690,-250.0,0.00011089,2]
[332875895,1721613031699,-1752.0,0.00011092,2]
[332875896,1721613031710,-187.865554,0.00011105,2]
[332875897,1721613031719,-218.90051206,0.00011105,2]
[332875898,1721613031729,-264.15620182,0.00011105,2]
[332875899,1721613031738,-155.0,0.00011105,2]
[332875900,1721613031749,-520.0,0.0001113,2]
[332875901,1721613031759,-24764.73626769,0.00011186,2]
[332875902,1721613031768,-25291.99505056,0.00011186,2]
[332875903,1721613031778,-1073.31104613,0.00011186,2]
[332875904,1721613031788,-958.99054241,0.00011186,2]
[332875905,1721613031797,-1389.67257197,0.00011186,2]
[332875910,1721613032179,-194.01,0.00011281,2]
[332875913,1721613032195,-3400.09129095,0.00011324,2]
[332875915,1721613032205,-388.45,0.00011408,2]
[332875916,1721613032214,-1280.0,0.000116,2]
[332875918,1721613032224,-684.9042,0.00011693,2]
[332875920,1721613032238,-1000.0,0.000118,2]
[332875921,1721613032249,-5510.4007,0.000118,2]
[332875922,1721613032259,-801.3801,0.000118,2]
[332875923,1721613032269,-216.2027,0.000118,2]
[332875924,1721613032279,-1000.0,0.000118,2]
[332875925,1721613032289,-2959.8344,0.000118,2]
[332875926,1721613032300,-500.0,0.00011805,2]
[332875927,1721613032311,-249.854,0.0001189,2]
[332875928,1721613032320,-2661.26,0.0001189,2]
[332875929,1721613032330,-190.924,0.0001189,2]
[332875930,1721613032340,-192.041,0.0001189,2]
[332875931,1721613032349,-1500.0,0.00011896,2]
[332875932,1721613032359,-276507.11077428,0.000119,2]
[332875933,1721613032378,-64156.19821337,0.000119,2]
[332875944,1721613038184,-1023.55810067,0.0001116,2]
[332875946,1721613038195,-49.75294546,0.0001116,2]
[332875948,1721613038205,-155.0,0.00011896,2]
[332875950,1721613038214,-2850.79205454,0.000119,2]
[332875953,1721613038243,-68007.10533006,0.000119,2]
[332876097,1721613039777,-731.17635156,0.000119,2]
[332876099,1721613039788,-500.0,0.000119,2]
[332876102,1721613039803,-938.06556108,0.000119,2]
[332876104,1721613039814,-6024.32031562,0.000119,2]
[332876107,1721613039826,-1489.433276,0.000119,2]
[332876111,1721613039838,-547.52749393,0.000119,2]
[332876200,1721613040725,-288.36575378,0.000119,2]
[332876202,1721613040736,-395.48039178,0.000119,2]
[332876205,1721613040747,-20391.59999999,0.000119,2]
[332876222,1721613040916,-574.03358918,0.000119,2]
[332876224,1721613040927,-730.07124766,0.000119,2]
[332876421,1721613042982,-5283.00575252,0.000119,2]
[332876423,1721613042993,-2061.18413364,0.000119,2]
[332876425,1721613043005,-382551.15528427,0.000119,2]
[332876429,1721613043034,-341.9783367,0.000119,2]
[332876690,1721613046018,-375.76220257,0.00011897,2]
[332876695,1721613046030,-1967.77021839,0.00011897,2]
[332876699,1721613046042,-7018.40044208,0.00011897,2]
[332876702,1721613046052,-7218.97535881,0.000119,2]
[332876705,1721613046063,-1313.87865291,0.000119,2]
[332876709,1721613046075,-6789.98700978,0.000119,2]
[332876713,1721613046086,-6608.37094698,0.000119,2]
[332876716,1721613046097,-1769.1806836,0.000119,2]
[332876719,1721613046110,-1774.86208729,0.000119,2]
[332876748,1721613046252,-6000.0,0.000119,2]
[332876751,1721613046265,-965.67310857,0.000119,2]
[332876755,1721613046276,-2497.79507697,0.000119,2]
[332876759,1721613046289,-28314.08202467,0.000119,2]
[332876762,1721613046300,-7511.43041172,0.000119,2]
[332876765,1721613046313,-25492.68481151,0.000119,2]
[332876770,1721613046326,-2207.19803113,0.000119,2]
[332876800,1721613046482,-32951.44758523,0.000119,2]
[332876804,1721613046494,-7518.9018059,0.000119,2]
[332876807,1721613046506,-2372.81520537,0.000119,2]
[332876810,1721613046518,-326.82671582,0.000119,2]
[332876814,1721613046529,-824.59977352,0.000119,2]
[332876817,1721613046540,-1002.44274149,0.000119,2]
[332876821,1721613046552,-1383.40857251,0.000119,2]
[332876824,1721613046563,-11173.27156439,0.000119,2]
[332876827,1721613046575,-2002.5117814,0.000119,2]
[332876830,1721613046587,-1462.76416002,0.000119,2]
[332877196,1721613759000,1000.0,0.00025,120]
[332877198,1721613802780,-40000.0,0.00013,30]
[332877199,1721613858823,-5000.0,0.00013,30]
[332877200,1721614227369,2341.0,0.00025,110]
[332877201,1721614231832,-381.0,9.398e-05,2]
[332877203,1721614231843,-793.04,0.00010959,2]
[332877205,1721614231853,-155.21,0.00011,2]
[332877206,1721614231863,-300.0,0.00011104,2]
[332877207,1721614231873,-1705.30917486,0.00011104,2]
[332877208,1721614231882,-254.76158442,0.00011105,2]
[332877209,1721614231892,-1267.4192646,0.00011105,2]
[332877210,1721614231901,-3066.39390379,0.00011105,2]
[332877211,1721614231910,-1000.0,0.00011208,2]
[332877212,1721614231920,-250.0,0.0001128,2]
[332877213,1721614231929,-3179.91,0.000113,2]
[332877214,1721614231939,-5615.60769815,0.00011321,2]
[332877215,1721614231948,-155.25755532,0.00011322,2]
[332877216,1721614231958,-244.79,0.00011519,2]
[332877217,1721614231967,-155.40364812,0.00011525,2]
[332877218,1721614231977,-381.0,0.00011662,2]
[332877219,1721614231986,-171.47,0.00011667,2]
[332877220,1721614231996,-830.0,0.00011781,2]
[332877221,1721614232007,-623.37359671,0.000118,2]
[332877222,1721614232017,-1000.0,0.000118,2]
[332877223,1721614232026,-298.79,0.000118,2]
[332877224,1721614232035,-500.0,0.00011805,2]
[332877225,1721614232045,-155.33095321,0.0001185,2]
[332877226,1721614232054,-644225.93262082,0.000119,2]
[332877227,1721614232066,-487.65931293,0.000119,2]
[332877228,1721614232078,-21424.43762948,0.000119,2]
[332877229,1721614232089,-1071.32430337,0.000119,2]
[332877230,1721614232100,-829.59060237,0.000119,2]
[332877231,1721614232111,-617.11822583,0.000119,2]
[332877241,1721614238251,-8791.5,0.000119,2]
[332877396,1721614239986,-3472.4318964,0.000119,2]
[332877695,1721614242912,-1000.0,0.000118,2]
[332877697,1721614242922,-1612.63897936,0.000119,2]
[332877701,1721614243099,-6463.52098676,0.000119,2]
[332877990,1721614246025,-794.0033412,0.000119,2]
[332877992,1721614246037,-442.82396974,0.000119,2]
[332877995,1721614246049,-891.94150928,0.000119,2]
[332877997,1721614246060,-75466.46291705,0.000119,2]
[332877999,1721614246071,-1833.27877921,0.000119,2]
[332878001,1721614246082,-353.504,0.000119,2]
[332878023,1721614246271,-6190.06320505,0.000119,2]
[332878025,1721614246282,-8792.89332579,0.000119,2]
[332878027,1721614246293,-815.3609232,0.000119,2]
[332878710,1721614539173,476.81951505,0.00025,110]
[332878711,1721614653217,229.072211,0.00025,120]
[332878712,1721614902866,500.0,0.00025,110]
[332878744,1721615432266,-366.21,9.179e-05,2]
[332878745,1721615432275,-621.24090652,0.00010854,2]
[332878746,1721615432284,-749.1,0.00010954,2]
[332878747,1721615432294,-402.65,0.00010958,2]
[332878749,1721615432304,-709.87,0.00010959,2]
[332878750,1721615432313,-250.0,0.00011046,2]
[332878751,1721615432323,-157.19135933,0.00011105,2]
[332878752,1721615432332,-155.0,0.00011105,2]
[332878753,1721615432341,-155.20488736,0.00011105,2]
[332878754,1721615432350,-229.68778384,0.00011105,2]
[332878755,1721615432359,-909.51327258,0.00011105,2]
[332878756,1721615432369,-266.99501043,0.00011105,2]
[332878757,1721615432378,-236.03729267,0.00011105,2]
[332878758,1721615432387,-1000.0,0.00011117,2]
[332878759,1721615432397,-200.0,0.00011127,2]
[332878760,1721615432406,-25291.99505056,0.00011186,2]
[332878761,1721615432415,-722.50991611,0.00011186,2]
[332878762,1721615432424,-308.89682017,0.00011206,2]
[332878763,1721615432434,-366.21,0.00011443,2]
[332878764,1721615432443,-253.10616379,0.00011525,2]
[332878765,1721615432452,-305.4426,0.000118,2]
[332878766,1721615432461,-108849.0348,0.000118,2]
[332878767,1721615432470,-1000.0,0.000118,2]
[332878768,1721615432480,-399.4983,0.000118,2]
[332878769,1721615432489,-206.1664,0.000118,2]
[332878770,1721615432498,-1472.526,0.000118,2]
[332878771,1721615432507,-500.0,0.00011805,2]
[332878772,1721615432516,-7396.72304664,0.0001185,2]
[332878773,1721615432526,-167.51539081,0.00011864,2]
[332878774,1721615432535,-2935.7430276,0.0001189,2]
[332878776,1721615432544,-364.2820115,0.00011898,2]
[332878778,1721615432554,-1634.60554168,0.00011899,2]
[332878780,1721615432564,-529.0,0.000119,2]
[332878781,1721615432573,-167084.26477798,0.000119,2]
[332878782,1721615437988,-4603.08190485,0.000119,2]
[332878784,1721615438132,-34103.49999999,0.000119,2]
[332878785,1721615438507,-111682.31923196,0.000119,2]
[332878807,1721615440539,-256.40874846,0.000119,2]
[332879145,1721615444888,506.9,9.02e-05,2]
[332879181,1721615448131,-272.43425694,0.00011899,2]
[332879182,1721615448140,-5901.26694306,0.000119,2]
[332879183,1721615448152,-5511.2815,0.000119,2]
[332879184,1721615448279,-298.3611915,0.000119,2]
[332879751,1721615819776,6837.0,0.00025,120]
[332879762,1721616632377,-351.34,9.139e-05,2]
[332879763,1721616632387,-78.5342519,0.00010859,2]
[332879764,1721616632398,-441.08533386,0.00010859,2]
[332879765,1721616632410,-469.48305765,0.00010859,2]
[332879766,1721616632421,-299.99,0.00010859,2]
[332879767,1721616632627,-1406.96235659,0.00010859,2]
[332879768,1721616632637,-250.0,0.00010883,2]
[332879769,1721616632646,-250.0,0.00010894,2]
[332879770,1721616632655,-204.17,0.00011004,2]
[332879771,1721616632664,-1000.0,0.00011029,2]
[332879772,1721616632673,-300.0,0.00011104,2]
[332879773,1721616632683,-184.84326439,0.00011105,2]
[332879774,1721616632693,-356.97970176,0.00011105,2]
[332879775,1721616632702,-155.0,0.00011105,2]
[332879776,1721616632714,-643.27324328,0.00011105,2]
[332879777,1721616632723,-314.30245147,0.00011105,2]
[332879778,1721616632732,-158.79626674,0.00011105,2]
[332879779,1721616632743,-156.91168009,0.00011105,2]
[332879780,1721616632752,-155.0,0.00011105,2]
[332879781,1721616632762,-155.0,0.00011105,2]
[332879782,1721616632771,-1010.28981523,0.00011105,2]
[332879783,1721616632780,-203.1480285,0.00011105,2]
[332879784,1721616632789,-1262.78,0.00011186,2]
[332879785,1721616632798,-499.99,0.00011322,2]
[332879786,1721616632807,-1140.35072373,0.00011384,2]
[332879787,1721616632816,-351.34,0.00011403,2]
[332879788,1721616632825,-195.83,0.00011489,2]
[332879789,1721616632834,-348.14,0.00011578,2]
[332879790,1721616632843,-789.65,0.000118,2]
[332879791,1721616632852,-1000.0,0.000118,2]
[332879792,1721616632861,-7514.31363853,0.000118,2]
[332879793,1721616632873,-852.2841565,0.000118,2]
[332879794,1721616632884,-4432.96273309,0.000118,2]
[332879795,1721616632894,-2133.07336285,0.000118,2]
[332879796,1721616632905,-5888.14399479,0.000118,2]
[332879797,1721616632916,-9417.06768576,0.000118,2]
[332879798,1721616632928,-78301.4674566,0.000118,2]
[332879799,1721616632937,-198.2441,0.000118,2]
[332879800,1721616632946,-434.33612724,0.000118,2]
[332879801,1721616632956,-500.0,0.00011805,2]
[332879802,1721616632966,-939.12107421,0.00011899,2]
[332879803,1721616632976,-150.92943093,0.00011899,2]
[332879804,1721616632985,-4924.21808524,0.000119,2]
[332879805,1721616632996,-789.65,0.000119,2]
[332879807,1721616638430,-320.32,0.00010959,2]
[332879808,1721616638439,-1146.374531,0.000119,2]
[332879809,1721616638452,-3000.0,0.000119,2]
[332879810,1721616638465,-1200.04944682,0.000119,2]
[332879811,1721616638722,-3160.1999999,0.000119,2]
[332879814,1721616640612,-1762.96017278,0.000119,2]
[332879867,1721616643439,-2208.68166422,0.000119,2]
[332879868,1721616643452,-336.718,0.000119,2]
[332879875,1721616646683,-572.86843509,0.000119,2]
[332879876,1721616646720,-2522.7804,0.000119,2]
[332879877,1721616646731,-6663.7,0.000119,2]
[332879884,1721617349774,735.0,0.00025,120]
[332879896,1721617832814,-336.51,9.15e-05,2]
[332879897,1721617832824,-10.89099992,0.0001089,2]
[332879898,1721617832836,-505.43097376,0.0001089,2]
[332879899,1721617832847,-955.00802632,0.0001089,2]
[332879900,1721617832862,-156.66,0.00010942,2]
[332879901,1721617832871,-366.42,0.00011017,2]
[332879902,1721617832881,-250.0,0.00011022,2]
[332879903,1721617832890,-342.13318843,0.00011105,2]
[332879904,1721617832900,-521.82541979,0.00011105,2]
[332879905,1721617832910,-155.0,0.00011105,2]
[332879906,1721617832920,-192.06586427,0.00011105,2]
[332879907,1721617832929,-300.0,0.00011185,2]
[332879908,1721617832939,-3016.71871887,0.00011186,2]
[332879909,1721617832950,-446.17024212,0.00011186,2]
[332879910,1721617832962,-2486.89270247,0.00011186,2]
[332879911,1721617832989,-866.7628267,0.00011186,2]
[332879912,1721617833000,-538.88,0.00011186,2]
[332879913,1721617833011,-619.48075157,0.00011186,2]
[332879914,1721617833024,-17317.08980883,0.00011186,2]
[332879915,1721617833033,-797.05110842,0.00011191,2]
[332879916,1721617833043,-200.0,0.00011208,2]
[332879917,1721617833051,-1690.87,0.00011322,2]
[332879918,1721617833061,-372.02209305,0.00011384,2]
[332879919,1721617833070,-336.51,0.00011414,2]
[332879934,1721617833414,-1000.0,0.00011472,2]
[332879935,1721617833454,-164.16368829,0.00011525,2]
[332879936,1721617833471,-254.93667841,0.00011525,2]
[332879937,1721617833481,-600.0,0.00011657,2]
[332879938,1721617833490,-714.275044,0.000118,2]
[332879939,1721617833499,-10000.0,0.000118,2]
[332879940,1721617833509,-7500.0,0.000118,2]
[332879941,1721617833518,-305.24445995,0.000118,2]
[332879942,1721617833528,-500.0,0.00011805,2]
[332879943,1721617833538,-226.57,0.00011808,3]
[332879944,1721617833547,-1444.87317933,0.00011899,3]
[332879945,1721617833556,-306032.95998751,0.000119,2]
[332879946,1721617833568,-577.50775,0.000119,2]
[332879947,1721617833579,-414.96820624,0.000119,2]
[332879948,1721617833591,-1057.3,0.000119,2]
[332879949,1721617839276,-1135.04507518,0.000119,2]
[332879950,1721617839288,-11491.499373,0.000119,2]
[332879951,1721617839301,-6491.85,0.000119,2]
[332879952,1721617839743,-1022.29096018,0.000119,2]
[332879953,1721617839755,-392.52338123,0.000119,2]
[332879954,1721617839767,-2440.56888441,0.000119,2]
[332879955,1721617839785,-610.09299413,0.000119,2]
[332879981,1721617840843,-324450.38131012,0.000119,2]
[332879982,1721617840854,-7954.74275575,0.000119,2]
[332879983,1721617840866,-18957.30321431,0.000119,2]
[332879984,1721617840877,-5807.43776704,0.000119,2]
[332879985,1721617840889,-522.809,0.000119,2]
[332879986,1721617840900,-14901.011465,0.000119,2]
[332879987,1721617840911,-880.75873053,0.000119,2]
[332879988,1721617840922,-1479.8776942,0.000119,2]
[332879989,1721617840934,-34642.4747875,0.000119,2]
[332879990,1721617840948,-135438.78553093,0.000119,2]
[332879991,1721617840960,-278.90148228,0.000119,2]
[332879992,1721617840971,-376.7177792,0.000119,2]
[332879993,1721617840983,-568.13080662,0.000119,2]
[332879994,1721617840995,-370.43560364,0.000119,2]
[332879995,1721617841138,-353.16,0.000119,2]
[332880054,1721617844925,-164.16368829,0.00011384,2]
[332880055,1721617844935,-955.90340301,0.000119,2]
[332880056,1721617844949,-680.88527095,0.000119,2]
[332880057,1721617844962,-4927.36395108,0.000119,2]
[332880058,1721617844978,-793.22381522,0.000119,2]
[332880059,1721617844990,-632.40367227,0.000119,2]
[332880060,1721617845002,-6978.5,0.000119,2]
[332880061,1721617845013,-330.14325002,0.000119,2]
[332880064,1721617846587,-300.0,0.000119,2]
[332880065,1721617846599,-1023.445605,0.000119,2]
[332880066,1721617846610,-3000.0,0.000119,2]
[332880067,1721617846873,-4815.94927174,0.000119,2]
[332880068,1721617846885,-6110.86443991,0.000119,2]
[332880069,1721617846896,-15451.33542455,0.000119,2]
[332880070,1721617846908,-8255.88641191,0.000119,2]
[332880071,1721617846919,-1301.61287039,0.000119,2]
[332880072,1721617846930,-489.5109991,0.000119,2]
[332880073,1721617846942,-74024.90584167,0.000119,2]
[332880076,1721618645653,1694.0,0.00024,60]
[332880077,1721618663400,500.0,0.00025,110]
[332880101,1721619032474,-302.85,9.364e-05,2]
[332880102,1721619032484,-224.74204072,0.00011,2]
[332880103,1721619032495,-995.87545876,0.00011,2]
[332880104,1721619032507,-1295.52238803,0.00011,2]
[332880105,1721619032516,-250.0,0.00011026,2]
[332880106,1721619032525,-200.01,0.00011041,2]
[332880107,1721619032535,-350.15,0.00011093,2]
[332880108,1721619032544,-347.23007097,0.00011105,2]
[332880109,1721619032553,-3066.39390379,0.00011105,2]
[332880110,1721619032563,-266.99501043,0.00011105,2]
[332880111,1721619032572,-3400.09129095,0.00011105,2]
[332880112,1721619032581,-1000.0,0.00011168,2]
[332880113,1721619032591,-155.48778495,0.00011324,2]
[332880114,1721619032600,-155.0,0.00011324,2]
[332880115,1721619032609,-155.22400636,0.00011324,2]
[332880116,1721619032619,-200.27514873,0.00011324,2]
[332880117,1721619032628,-234.67,0.00011516,2]
[332880118,1721619032638,-302.85,0.00011627,2]
[332880119,1721619032650,-4860.3598,0.000118,2]
[332880120,1721619032660,-1000.0,0.000118,2]
[332880121,1721619032669,-10000.0,0.000118,2]
[332880122,1721619032679,-23483.43242396,0.000118,2]
[332880123,1721619032688,-176.73050565,0.000118,2]
[332880124,1721619032697,-178.96853624,0.000118,2]
[332880125,1721619032707,-500.0,0.00011805,2]
[332880126,1721619032716,-645.09,0.00011805,2]
[332880127,1721619032725,-150.99,0.00011805,2]
[332880128,1721619032734,-12799.56052812,0.0001185,2]
[332880129,1721619032743,-348755.9848177,0.0001188,2]
[332880130,1721619033022,-111289.04155122,0.000119,2]
[332880131,1721619033173,-336.22,0.000119,2]
[332880132,1721619033185,-1002.293869,0.000119,2]
[332880138,1721619038000,-193.64024432,0.0001189,2]
[332880140,1721619038010,-1075.59871174,0.000119,2]
[332880142,1721619038021,-435.09366157,0.000119,2]
[332880143,1721619038181,-591.66225489,0.000119,2]
[332880144,1721619038193,-1879.79073718,0.000119,2]
[332880159,1721619039996,-311.6,0.000119,2]
[332880160,1721619040154,-292.73680835,0.000119,2]
[332880178,1721619042894,-272627.99999949,0.000119,2]
[332880179,1721619045721,-909.823187,0.00010945,2]
[332880180,1721619045730,-3591.66499402,0.000119,2]
[332880182,1721619046091,-538.45607022,0.000119,2]
[332880183,1721619046103,-1000.18527722,0.000119,2]
[332880184,1721619046114,-136159.99243984,0.000119,2]
[332880185,1721619046127,-140621.86100619,0.000119,2]
[332880186,1721619046138,-5891.39520654,0.000119,2]
[332880187,1721619046150,-4107.44016929,0.000119,2]
[332880197,1721619061152,621.03097653,0.00025,120]
[332880202,1721619537425,155.0,0.00025,120]
[332880203,1721619670071,300.0,0.00025,110]
[332880204,1721619710226,300.0,0.00025,110]
[332880210,1721620231640,-293.44,9.146e-05,2]
[332880211,1721620231650,-2365.71910693,0.00010804,2]
[332880212,1721620231803,-1806.51089307,0.00010804,2]
[332880213,1721620231813,-1000.0,0.00010875,2]
[332880214,1721620231822,-250.0,0.00010901,2]
[332880215,1721620231831,-242.29,0.00011002,2]
[332880216,1721620231840,-187.74,0.00011012,2]
[332880217,1721620231849,-250.0,0.00011018,2]
[332880218,1721620231858,-212.26,0.00011059,2]
[332880219,1721620231867,-300.0,0.00011104,2]
[332880220,1721620231876,-155.3013661,0.00011105,2]
[332880221,1721620231886,-719.73960593,0.00011105,2]
[332880222,1721620231895,-4861.66238188,0.00011105,2]
[332880223,1721620231904,-270.53198693,0.00011105,2]
[332880224,1721620231914,-236.03729267,0.00011105,2]
[332880225,1721620231924,-692.53782461,0.00011186,2]
[332880226,1721620231933,-958.99054241,0.00011324,2]
[332880227,1721620231942,-293.44,0.0001141,2]
[332880228,1721620231952,-155.10833034,0.00011525,2]
[332880229,1721620231961,-3637.9844,0.0001178,2]
[332880230,1721620231970,-10000.0,0.000118,2]
[332880231,1721620231979,-553.4277,0.000118,2]
[332880232,1721620231988,-3312.7229,0.000118,2]
[332880233,1721620231997,-500.0,0.00011805,2]
[332880234,1721620232006,-261.91870956,0.0001185,2]
[332880235,1721620232016,-155.0,0.0001185,2]
[332880236,1721620232025,-155.0,0.0001185,2]
[332880237,1721620232034,-315524.47304149,0.00011882,2]
[332880238,1721620232044,-3293.5165576,0.00011884,2]
[332880239,1721620232054,-1509.29273388,0.00011899,3]
[332880240,1721620232064,-115747.84081006,0.000119,2]
[332880241,1721620232076,-1100.4363308,0.000119,2]
[332880242,1721620232100,-408.85640308,0.000119,2]
[332880243,1721620232140,-15662.07412973,0.000119,2]
[332880244,1721620237663,-222.97,0.00011808,3]
[332880245,1721620237672,-768.31133995,0.000119,2]
[332880246,1721620237719,-1629.96591577,0.000119,2]
[332880247,1721620237830,-4162.55185861,0.000119,2]
[332880248,1721620237887,-1028.52477935,0.000119,2]
[332880249,1721620237899,-666.77284336,0.000119,2]
[332880250,1721620237911,-11902.30971465,0.000119,2]
[332880252,1721620239767,-10000.0,0.000118,2]
[332880253,1721620239777,-78849.10425264,0.000119,2]
[332880254,1721620239825,-302.85004585,0.000119,2]
[332880255,1721620239937,-312.60966571,0.000119,2]
[332880256,1721620239948,-635.20510333,0.000119,2]
[332880257,1721620239992,-881.24,0.000119,2]
[332880334,1721620245904,-288.67861635,0.00011899,2]
[332880335,1721620245915,-84.2063357,0.000119,2]
[332880337,1721620528497,264.09,8.899e-05,2]
[332880338,1721620570708,1255.76496743,8.899e-05,2]
[332880339,1721620593642,1049.0,0.00025,120]
[332880340,1721620978696,295.83404697,0.00025,110]
[332880342,1721621141758,250.88,8.87e-05,2]
[332880343,1721621194587,1000.0,0.00024,60]
[332880344,1721621211223,1000.0,0.00025,120]
[332880345,1721621222632,837.17664495,8.87e-05,2]
[332880351,1721621327636,697.64720413,8.87e-05,2]
[332880352,1721621407937,697.64720413,8.87e-05,2]
[332880367,1721621431835,-250.0,0.00010607,2]
[332880368,1721621431845,-56.31401129,0.00010633,2]
[332880369,1721621431947,-662.33444297,0.00010633,2]
[332880370,1721621432055,-134.14154574,0.00010633,2]
[332880371,1721621432065,-800.0,0.00010741,2]
[332880372,1721621432074,-985.08310184,0.00010751,2]
[332880373,1721621432112,-270.54652826,0.00010751,2]
[332880374,1721621432122,-672.41527894,0.00010751,2]
[332880375,1721621432131,-200.0,0.00010759,2]
[332880376,1721621432141,-169.8,0.00010819,2]
[332880377,1721621432150,-57.21609148,0.000109,3]
[332880378,1721621432161,-442.78390852,0.000109,3]
[332880379,1721621432171,-21.00003728,0.00011,4]
[332880380,1721621432182,-1078.99996272,0.00011,4]
[332880381,1721621432193,-1061.07784852,0.000111,4]
[332880382,1721621432205,-337.21932,0.000111,4]
[332880384,1721621437852,-528.78126924,0.00010575,2]
[332880386,1721621437868,-69.12914401,0.000111,4]
[332880387,1721621438010,-132.57368747,0.000111,4]
[332880388,1721621438020,-261.91870956,0.00011105,2]
[332880389,1721621438030,-790.03749529,0.00011105,2]
[332880390,1721621438039,-155.0,0.00011105,2]
[332880391,1721621438049,-356.97970176,0.00011105,2]
[332880392,1721621438059,-158.79626674,0.00011105,2]
[332880393,1721621438069,-722.50991611,0.00011105,2]
[332880394,1721621438079,-155.0,0.00011105,2]
[332880395,1721621438089,-250.88,0.00011134,2]